[Event "European Amateur Chess-ch 2022"]
[Site "Zagreb"]
[Date "2022.08.20"]
[Round "8.5"]
[White "Babic, Zvonko"]
[Black "Grgantov, Marin"]
[Result "1-0"]
[ECO "D35"]
[WhiteElo "2180"]
[BlackElo "2048"]
[Annotator "TA"]
[PlyCount "107"]
[EventDate "2022.08.14"]
[EventCountry "CRO"]
[SourceTitle "playchess.com"]
[Source "ChessBase"]
[SourceQuality "1"]
[TimeControl "40/5400+30:1800+30"]

{[%evp 12,107,39,30,21,21,30,27,34,22,64,48,60,68,66,53,74,52,65,0,0,-12,0,0,6,-27,-31,-52,-62,-102,-105,-101,-53,-139,-102,-83,-87,-134,-135,-200,-199,-236,-206,-220,-42,-179,-175,-167,-170,-151,-135,-322,-271,-381,-212,-217,-153,-159,-173,-196,-197,-307,-319,-295,-275,-295,-104,-103,-84,-72,-44,-87,0,0,0,0,127,52,327,349,589,577,935,883,917,826,831,839,839,839,846,839,806,802,1217,1168,1238,976]} 1. d4 Nf6 2. c4 e6 3. Nc3 Bb4 4. Bg5 d5 5. cxd5 exd5 6. e3 h6 7. Bh4 c6 {D35: Queen's Gambit Declined: Exchange Variation.} 8. Bd3 O-O 9. Nge2 Bd6 {White has an edge.} 10. h3 Be6 11. Qc2 {[#]} a5 $146 ({Predecessor:} 11... Nbd7 12. O-O Nb6 13. f3 Be7 14. Rad1 Nh5 15. Bxe7 Qxe7 16. g4 Nf6 17. Nf4 Rad8 18. Rde1 {1-0 (40) Palladino,M (2179)-Bartnik,A (2107) ICCF email 2020}) 12. O-O Na6 13. a3 {Prevents Nb4.} Nc7 {[%cal Ba6c7,Bc7e8,Be8d6,Bd6e4][%mdl 32]} 14. Rae1 Nce8 15. f4 (15. f3 $14) 15... Be7 $11 16. f5 Bd7 17. Bg3 Nd6 18. Na4 Nfe4 19. Bxe4 Nxe4 20. Nc5 Bxc5 21. dxc5 {[%cal Of5f6]} a4 (21... Qg5 $17 22. Bf4 Qxf5) 22. Be5 ({White should try} 22. f6 $15) 22... Qg5 23. Nd4 Rfe8 24. Bf4 (24. Bc7 $142) 24... Qe7 $17 25. Qe2 (25. Bd6 $17 Nxd6 26. f6 gxf6 27. cxd6 Qxd6 28. Rf3) 25... Qxc5 $19 26. f6 Nxf6 27. Bxh6 {[%cal Oe2f3]} Re5 $2 (27... Ne4 $1 $19 28. Qh5 Re7) 28. Qf2 (28. Rxf6 $1 $15 gxf6 29. Qf2) 28... Qe7 $1 {Strongly threatening ...Ne4.} 29. Bf4 Rh5 30. Qf3 Qe4 31. Qe2 $2 (31. Ne2 $17) 31... Re8 {...Qg6 is the strong threat.} 32. Bh2 {[#]} (32. Qf3 {is a better defense.}) 32... Rg5 (32... Bxh3 $142 $1 {[%mdl 512]} 33. Qc2 Qxc2 34. Nxc2 Rg5) 33. Rf4 Qe7 {Threatens to win with ...Bxh3.} 34. Nf3 Rg6 35. Nh4 Rh6 36. Rxa4 (36. Ref1 {might work better.}) 36... Ne4 37. Nf3 c5 38. Ra7 Bf5 $2 (38... Qf6 $1 $19 {and Black stays clearly on top.} 39. Rxb7 Bxh3 $1 40. gxh3 Qg6+ 41. Kh1 (41. Qg2 $2 Qa6 $19) 41... Rxh3) 39. Qb5 $17 Bc8 40. Ra8 Kf8 41. b4 Re6 (41... Rg6 $17 {[%cal Og6g2] aiming for ...Rxg2+!} 42. g4 Rh6) 42. bxc5 $11 Nxc5 43. Bf4 f6 {[#]} (43... Bd7 $11 44. Qa5 (44. Rxe8+ Bxe8 45. Qb1 Kg8 $11) 44... Nd3) 44. Nd4 {White is much more active.} (44. Rc1 $1 $16 {[%cal Rc1c5]} b6 45. Nd4) 44... Re4 $2 {[%mdl 8192]} ({Black should play} 44... Ra6 $14 45. Rxa6 bxa6) 45. Rc1 $18 b6 (45... Bd7 {keeps fighting.} 46. Rxe8+ Kxe8 47. Qxc5 Qxc5 48. Rxc5 g5) 46. Qxb6 {Hoping for Bd6. White is clearly winning.} Nd7 47. Qc7 {Black must now prevent Bd6.} Rxf4 48. Qxf4 Nb6 49. Rc7 Nxa8 50. Rxe7 Kxe7 51. Qb8 Bd7 52. Qb4+ Kf7 53. Qd6 Be6 54. Qc6 {White used his chance.  Weighted Error Value: White=0.31/Black=0.55} 1-0

[Event "European Amateur Chess-ch 2022"]
[Site "Zagreb"]
[Date "2022.08.20"]
[Round "8.6"]
[White "Bouget, Alexandre"]
[Black "Denic, Marin"]
[Result "1-0"]
[ECO "E46"]
[WhiteElo "2282"]
[BlackElo "2190"]
[Annotator "TA"]
[PlyCount "71"]
[EventDate "2022.08.14"]
[EventCountry "CRO"]
[SourceTitle "playchess.com"]
[Source "ChessBase"]
[SourceQuality "1"]
[TimeControl "40/5400+30:1800+30"]

{[%evp 20,71,0,0,0,-14,0,0,-24,-18,-8,-22,0,-20,6,9,21,0,50,17,27,20,84,0,14,0,31,46,34,25,79,90,105,104,87,55,105,85,112,65,107,112,154,132,152,140,184,186,790,763,772,771,877,850]} 1. d4 Nf6 2. c4 e6 3. Nc3 Bb4 4. e3 O-O 5. Nge2 d5 6. a3 Be7 7. cxd5 exd5 8. b4 c6 9. Ng3 Re8 10. Bd3 Nbd7 11. O-O Nb6 {E46: Nimzo-Indian: Rubinstein: 4 e3 0-0 5 Ne2 without early Bd3.} 12. f3 a5 13. Rb1 axb4 {The position is equal.} 14. axb4 Be6 15. Nce2 Ra4 16. Bd2 {[#]} Qa8 $146 ({Predecessor:} 16... Qd7 17. Nf4 Rea8 18. Bc3 Nc4 19. Re1 Ra3 20. Qc1 Bd6 21. Nxe6 Qxe6 22. Nf5 Bf8 {0-1 (51) Shimanov,A (2476)-Zontakh,A (2579) St Petersburg 2008}) 17. e4 dxe4 18. fxe4 Bc4 ({Black should play} 18... Nc4 $11) 19. Bc2 Ra2 20. Rf2 Qa6 {[#]} ({Don't do} 20... Ng4 21. Rf4 Be6 22. Nc3 $14 (22. Bb3 Bxb3 23. Qxb3 Nf6 $15)) (20... Be6 $11) 21. b5 ({Better is} 21. Nc1 $1 $16 {[%cal Rc1a2]} Ra1 22. e5) 21... cxb5 $11 22. e5 Nfd5 (22... Ng4 $5 {[%cal Rg4f2]} 23. Rf4 Nh6 $15) 23. Nc1 {[%cal Oc2h7] White wants to mate with Bxh7+!} Rxc2 24. Qxc2 b4 {[#]} (24... g6 $11) 25. Qf5 $1 $40 {[%mdl 128] White goes for the king.} Nc3 26. Bxc3 bxc3 27. Ne4 Be6 (27... Na4 $14) 28. Qf3 Nd5 29. Nxc3 (29. Na2 $16) 29... Qc4 30. N1e2 Bg5 31. Nxd5 ({Resist} 31. Rxb7 Be3 $16) 31... Bxd5 {This bishop pair is nice.} 32. Qg3 Qc2 33. Nc3 ({Worse is} 33. Qxg5 Qxb1+ 34. Qc1 Qxc1+ 35. Nxc1 Rc8 $15) 33... Qg6 (33... Bd2) 34. h4 $18 {White is clearly winning.} Be4 35. Re1 Bd2 36. Qxg6 {Weighted Error Value: White=0.15 (very precise) /Black=0.31} 1-0

[Event "European Amateur Chess-ch 2022"]
[Site "Zagreb"]
[Date "2022.08.20"]
[Round "8.7"]
[White "Brigljevic, Milan"]
[Black "Ruzic, Pia Marie"]
[Result "0-1"]
[ECO "C00"]
[WhiteElo "2161"]
[BlackElo "1996"]
[Annotator "NA RC"]
[PlyCount "80"]
[EventDate "2022.08.14"]
[EventCountry "CRO"]
[SourceTitle "playchess.com"]
[Source "ChessBase"]
[SourceQuality "1"]
[TimeControl "40/5400+30:1800+30"]

1. e4 e6 2. d3 d5 3. Nd2 b6 4. g3 Bb7 5. Bg2 c5 6. Ngf3 Nc6 7. O-O dxe4 8. dxe4 e5 9. Re1 Nf6 10. c3 Be7 11. Nh4 O-O 12. Nf5 Qc7 13. Nc4 Rfd8 14. Qf3 b5 15. Nce3 Na5 16. Nxe7+ Qxe7 17. Nf5 Qe6 18. Bg5 Nc4 19. Bh3 Qb6 20. Nh6+ Kf8 21. Ng4 Nxg4 22. Bxd8 Nxh2 23. Kxh2 Rxd8 24. b3 Nd2 25. Qe3 Bxe4 26. Bg2 Rd3 27. Qe2 Qh6+ 28. Kg1 Nf3+ 29. Kf1 Nd2+ 30. Kg1 Bxg2 31. Kxg2 Qc6+ 32. Kh3 Rd6 33. g4 e4 34. Rad1 Rh6+ 35. Kg2 e3+ 36. f3 Nxf3 37. Rd8+ Ke7 38. Qxe3+ Ne5+ 39. Kg3 Kxd8 40. Qxe5 Qd6 0-1

[Event "European Amateur Chess-ch 2022"]
[Site "Zagreb"]
[Date "2022.08.20"]
[Round "8.8"]
[White "Tomic, Stjepan"]
[Black "Roska, Branislav"]
[Result "1/2-1/2"]
[ECO "A80"]
[WhiteElo "1990"]
[BlackElo "2153"]
[Annotator "TA"]
[PlyCount "107"]
[EventDate "2022.08.14"]
[EventCountry "CRO"]
[SourceTitle "playchess.com"]
[Source "ChessBase"]
[SourceQuality "1"]
[TimeControl "40/5400+30:1800+30"]

{[%evp 9,107,17,43,33,24,21,25,16,45,41,50,44,40,21,35,41,63,36,101,70,115,73,97,73,237,257,235,255,266,254,258,263,223,233,297,287,290,297,303,300,312,305,342,335,313,331,400,394,400,384,384,393,376,377,393,396,411,375,397,396,862,243,247,232,232,232,232,232,232,232,232,0,170,0,239,0,209,0,0,0,0,0,0,0,0,0,0,0,0,0,0,0,772,0,0,0,639,0,1119,-29996]} 1. d4 f5 2. Bf4 Nf6 3. e3 e6 4. Nf3 b6 5. Be2 Bb7 6. O-O {A80: Dutch Defence: Unusual White second moves.} Be7 7. h3 O-O 8. c4 {White has an edge.} h6 9. Nc3 d6 10. Rc1 {[#]} c5 $146 ({Predecessor:} 10... Nbd7 11. b4 Ne4 12. c5 Ndf6 13. Bc4 d5 14. Bd3 bxc5 15. bxc5 Ne8 16. Ne5 Bf6 {1-0 (69) Linhart,W (2190)-Aulinger,R (2150) Bayern 2000}) 11. Qb3 Nc6 12. Rfd1 Na5 13. Qc2 a6 (13... Ne4 $14) 14. b3 Nc6 {[%cal Of6e4]} 15. Bh2 {White is more active.} Ne4 16. a3 Bh4 $2 (16... Nb8 $16 {was called for.}) 17. Nxe4 fxe4 18. Nxh4 (18. Qxe4 Nxd4 $1 {[%mdl 512]} 19. Qxb7 Nxe2+ 20. Kh1 Nxc1 21. Nxh4 Qxh4 $17) 18... Qxh4 19. Bg3 (19. Bxd6 Qxf2+ 20. Kh2 Qxe3 $1 21. Bxf8 Nxd4 22. Rxd4 cxd4 $17) 19... Qf6 20. dxc5 dxc5 21. Rd7 (21. Qxe4 $6 Nd4 22. Qg4 (22. Qd3 Be4 $15) 22... Nf5 $16) 21... Rf7 22. Rcd1 Nd4 {[#]} 23. Rxf7 $1 Nxe2+ 24. Qxe2 Qxf7 25. Rd6 {Inhibits Bc6.} Rc8 26. Qd2 {Rd7 is the strong threat.} (26. Rxb6 Qd7 27. Qh5 Rc6) 26... Re8 27. Rxb6 Bc8 28. Rd6 Qf6 29. Kh2 h5 30. h4 g5 31. hxg5 Qxg5 32. Bf4 Qg4 33. Kg1 h4 34. Rd8 Kf7 {[#]} (34... Qg6 35. Qd1 e5 36. Qd5+ Kh7 37. Rxe8 Qxe8 38. Bxe5 Bf5) 35. Rxe8 $2 (35. Rxc8 $1 {[%mdl 512] Qd7+ would kill now.} h3 36. Rc7+ Re7 37. Rxe7+ Kxe7 38. Bg3) 35... Kxe8 $18 {[%mdl 4096] Endgame KQB-KQB} 36. Qb2 {Black must now prevent Qh8+.} Kf7 37. Qh8 e5 38. Bxe5 h3 {[%csl Gh3][%cal Rg4g2]} 39. Qf6+ Ke8 {[%csl Gh3][%cal Rg4g2]} 40. Qh8+ Kf7 $1 {[%csl Gh3][%cal Rg4g2]} 41. Qf6+ (41. Qh7+ $142 Ke8 42. Qh8+ Kf7) 41... Ke8 {[%csl Gh3][%cal Rg4g2] [#]} 42. g3 (42. Bg3 $1 $18) 42... Qd1+ $1 $11 43. Kh2 Qf1 {[%csl Gh3][%cal Rf1g2]} 44. Qg6+ Kd8 {[%csl Gh3][%cal Rf1g2]} 45. Qg5+ (45. Qxe4 Qxf2+ 46. Kh1 h2 47. Bf6+ Qxf6 $17) 45... Ke8 {[%csl Gh3][%cal Rf1g2]} 46. Qg8+ Ke7 {[%csl Gh3][%cal Rf1g2]} 47. Qg7+ Ke8 {[%csl Gh3][%cal Rf1g2]} 48. Qg6+ Kd8 {[%csl Gh3][%cal Rf1g2]} 49. Qd6+ (49. Qxe4 Qxf2+ 50. Kh1 h2 51. Qd5+ Bd7 52. Qg8+ Ke7 53. Qg5+ Ke6 54. Qg8+ Kxe5 55. Qd5+ Kf6 56. Qd6+ Kg5 57. Qf4+ (57. Qe7+ $2 Kh6 $19) 57... Qxf4 58. exf4+ Kg4 $19) 49... Ke8 {[%csl Gh3][%cal Rf1g2]} 50. Qc6+ Ke7 $2 {[%mdl 8192]} (50... Bd7 $11 51. Qg6+ (51. Qxe4 Qxf2+ 52. Kh1 Qf1+ 53. Kh2 Qf2+ 54. Kh1 Qf1+ 55. Kh2 Qf2+ $11) 51... Kd8 52. Qg8+ (52. Qxe4 Qxf2+ 53. Kh1 h2 $17) 52... Ke7 53. Qh7+ Ke8 54. Qg8+ (54. Qxe4 Qxf2+ 55. Kh1 Qf1+ 56. Kh2 Qf2+ 57. Kh1 Qf1+ 58. Kh2 Qf2+ $11) 54... Ke7 55. Qg7+ Ke8 56. Qh8+ Kf7 57. Qf6+ Ke8 58. Qg6+ Kd8 59. Qg8+ (59. Qxe4 Qxf2+ 60. Kh1 h2 $17) 59... Ke7) 51. Qf6+ $2 (51. Qxc5+ $18 Kf7 52. Qc7+ Ke6 53. Qd6+ Kf7 54. Qf6+ Ke8 55. Qg6+ Ke7 56. Bf6+ Kd6 57. c5+ Kxc5 58. Bd4+ Kd5 59. Qh5+ Kc6 60. Qc5+ Kd7 61. Qf5+ Ke8 62. Qxc8+ Ke7 63. Bc5+ Kf6 64. Qd8+ Kf5 65. Qf8+ Kg6 66. Qe8+ Kg5 67. Be7+ Kg4 68. Qg6+ Kf3 69. Qf6+ Ke2 70. Qxa6+ Kxf2 71. Qxf1+ Kxf1 72. g4) 51... Ke8 {[%csl Gh3][%cal Rf1g2]} 52. Qc6+ $2 {[%mdl 8192]} (52. Qh8+ $11 Kf7 53. Qg7+ (53. Qh7+ Ke8 $11) 53... Ke8 54. Qg6+) 52... Ke7 $18 {[%csl Gh3][%cal Rf1g2]} 53. Bd6+ $2 (53. Qxc5+ $18 Kf7 54. Qc7+ Ke6 55. Qd6+ Kf7 56. Qc7+ Ke6 57. Qxc8+ Kxe5 58. Qe8+ Kd6 59. Qxe4) 53... Kf7 $2 {[%mdl 8192]} (53... Kf6 $11 54. Be5+ (54. Qxe4 $2 Qxf2+ 55. Kh1 Qe1+ 56. Kh2 Qd2+ 57. Kg1 Qe1+ 58. Kh2 Qd2+ 59. Kg1 Qxd6 $19) (54. Bxc5+ Be6 $11) 54... Kxe5 55. Qxc5+ Kf6 56. Qf8+ (56. Qd6+ Be6 $11) 56... Kg6 57. Qg8+ Kh6 58. Qf8+ Kh7 59. Qe7+ Kh6 60. Qh4+ (60. Qd6+ Kh7 $11) 60... Kg7 61. Qg5+ (61. Qe7+ Kh6 $11) 61... Kh8 62. Qh5+ Kg7 63. Qg5+ (63. Qe5+ Kg8 $11) 63... Kh8 64. Qh6+ Kg8 65. Qg6+ Kh8 66. Qh6+ Kg8 67. Qg5+ Kh8) 54. Qc7+ $4 {[%mdl 40960] Weighted Error Value: White=0.47/Black=0.16 (very precise) . An unexpected result.} (54. Qd5+ $18 Kg6 55. Qg8+ Kf6 56. Qf8+ Kg6 57. Qg8+ Kf6 58. Qh8+ Ke6 59. Qe5+ Kf7 60. Qh5+ Kf6 61. Qh6+ Kf7 62. Qh7+ Kf6 63. Qe7+ Kg6 64. Qe8+ Kg5 65. Be7+ (65. Bf4+ Kg4 $11) 65... Kg4 66. Qxc8+ Kf3 67. Qf5+ Ke2 68. Qxe4) 1/2-1/2

[Event "European Amateur Chess-ch 2022"]
[Site "Zagreb"]
[Date "2022.08.20"]
[Round "8.9"]
[White "Franc, Borna"]
[Black "Gal, Andrej"]
[Result "1/2-1/2"]
[ECO "A26"]
[WhiteElo "2020"]
[BlackElo "1878"]
[Annotator "NA RC"]
[PlyCount "83"]
[EventDate "2022.08.14"]
[EventCountry "CRO"]
[SourceTitle "playchess.com"]
[Source "ChessBase"]
[SourceQuality "1"]
[TimeControl "40/5400+30:1800+30"]

1. c4 Nf6 2. Nc3 g6 3. e4 d6 4. g3 Bg7 5. Bg2 e5 6. d3 O-O 7. Nge2 Nc6 8. O-O Ne8 9. f4 f5 10. Be3 Nf6 11. h3 Be6 12. Nd5 Qd7 13. Kh2 Kh8 14. Qb3 Rab8 15. Rac1 Nh5 16. Qa3 a6 17. b4 fxe4 18. dxe4 exf4 19. Nexf4 Nxf4 20. Bxf4 Ne5 21. Rfd1 c6 22. Nb6 Qc7 23. Qe3 Rbd8 24. a3 Qe7 25. Bg5 Bf6 26. Bxf6+ Qxf6 27. c5 dxc5 28. Qxc5 Qg7 29. Rxd8 Rxd8 30. Rf1 h5 31. Qe3 Nf7 32. Na4 Bc8 33. Nc5 Re8 34. a4 Kh7 35. a5 Ne5 36. Qg5 Kg8 37. Rf6 Kh7 38. Rf2 Kg8 39. Rf6 Kh7 40. Rd6 Qf7 41. Rf6 Kg8 42. Rxg6+ 1/2-1/2

[Event "European Amateur Chess-ch 2022"]
[Site "Zagreb"]
[Date "2022.08.20"]
[Round "8.10"]
[White "Vanden Bussche, Steven"]
[Black "Buchcar, Tomas"]
[Result "1/2-1/2"]
[ECO "D00"]
[WhiteElo "2026"]
[BlackElo "2208"]
[Annotator "TA"]
[PlyCount "112"]
[EventDate "2022.08.14"]
[EventCountry "CRO"]
[SourceTitle "playchess.com"]
[Source "ChessBase"]
[SourceQuality "1"]
[TimeControl "40/5400+30:1800+30"]

{[%evp 9,112,0,0,-14,32,43,51,58,58,58,58,43,47,11,50,6,14,13,25,25,25,19,20,22,28,3,14,13,18,-24,-3,-4,29,24,35,34,49,34,47,31,31,23,20,26,64,54,147,135,125,89,131,109,123,110,96,90,131,126,135,127,141,0,109,78,174,114,153,0,0,0,62,63,66,62,50,41,37,42,41,37,53,0,0,8,10,0,0,0,0,0,0,0,0,0,0,0,0,0,0,0,0,-18,-16,-38,0]} 1. d4 d5 2. Bf4 Nf6 3. e3 c5 4. c3 Nc6 5. Nd2 Bf5 6. Qb3 {D00: 1 d4 d5: Unusual lines.} Qb6 (6... Qc8 $11 {should be considered.}) 7. dxc5 $14 Qxb3 8. axb3 {[%cal Ba2b3,Bb3b4,Bb4b5][%mdl 32] White is slightly better.} e5 9. Bg3 Bxc5 10. b4 Bd6 11. Ngf3 $1 {The main line 11.Ngf3 scores better than 11.b5.} Nd7 12. b5 Ne7 13. Be2 f6 14. O-O {[#]} Nb6 $146 ({Predecessor:} 14... O-O 15. Rfd1 Bc2 16. Rdc1 Bg6 17. Rd1 Bc2 18. Rdc1 Bg6 19. c4 Bf7 20. cxd5 Nxd5 {½-½ (56) Kosic,D (2488)-Skoberne,J (2492) Novi Sad 2009}) 15. Rfd1 {[%cal Oe3e4]} Nec8 16. Nh4 Be6 17. e4 dxe4 18. Nxe4 Be7 19. Nf3 Bb3 {With the idea ...f5.} 20. Re1 Kf7 21. Nfd2 Be6 22. f4 exf4 23. Bxf4 Nd5 24. Bg3 f5 25. c4 $1 $36 {[%mdl 2048] White fights for an advantage.} Nb4 {White must now prevent ...Nc2.} ({Resist} 25... fxe4 26. cxd5 Bxd5 27. Nxe4 $1 $16) 26. Rf1 {[%cal Od2f3]} Kg6 27. Nc3 Nc2 {[#]} (27... Re8 $14) 28. Rac1 $1 $16 Nd4 29. Bd3 Bg5 30. Rcd1 Ne7 31. Nf3 Nxf3+ 32. Rxf3 ({But not} 32. gxf3 $6 Kf7 $11) 32... Rad8 33. Re1 Bc8 34. Bb8 a6 35. g4 (35. bxa6 $16 {Hoping for a7.} bxa6 36. Bc7) 35... Rhf8 (35... Rd4 $11 {keeps the balance.}) 36. Ba7 Kf7 (36... axb5 $16 37. Nxb5 Nc6) 37. Bc5 (37. Bb6 $18) 37... Rfe8 38. Bxe7 $2 {0x0.0019ee9fe79fdp-1022s more active pieces.} (38. gxf5 $16 {Threatens to win with Ne4.} Bf6 39. Kf1 (39. bxa6 bxa6 40. Ne4 Nxf5 $16)) 38... Rxe7 $11 39. Rxe7+ Bxe7 ({Black should play} 39... Kxe7 $11 40. Bxf5 axb5) 40. Bxf5 $14 Bxf5 41. Rxf5+ $16 {[%mdl 4096] Endgame KRB-KRN} Ke6 42. bxa6 bxa6 43. Ra5 Rd4 {[%csl LRc4,LRg4]} 44. Rxa6+ Kf7 45. Rc6 {And now Nd5 would win.} (45. Nd5 $5 {[%cal Ra6a7]} Rxg4+ 46. Kf1 Rxc4 47. Ra7 $11) 45... Rxg4+ 46. Kf2 {Strongly threatening Nd5.} Bf6 $1 47. Kf3 Rh4 48. Kg3 {[%cal Oc6f6] Rxf6+! is the strong threat.} Rd4 49. Rc5 Rd3+ {[%mdl 64] Discovered Attack} 50. Kf4 Rh3 51. Nd1 Rxh2 52. b4 Be7 53. Rc7 Ke8 {aiming for ...Bd6+.} 54. Rb7 Rh4+ 55. Kf5 Rxc4 56. Ne3 Rxb4 {Weighted Error Value: White=0.14 (very precise) /Black=0.18 (very precise)} 1/2-1/2

[Event "European Amateur Chess-ch 2022"]
[Site "Zagreb"]
[Date "2022.08.20"]
[Round "8.11"]
[White "Janiszewski, Maciej"]
[Black "Jakovic, Roko"]
[Result "1-0"]
[ECO "D11"]
[WhiteElo "2075"]
[BlackElo "1921"]
[Annotator "NA RC"]
[PlyCount "113"]
[EventDate "2022.08.14"]
[EventCountry "CRO"]
[SourceTitle "playchess.com"]
[Source "ChessBase"]
[SourceQuality "1"]
[TimeControl "40/5400+30:1800+30"]

1. Nf3 d5 2. d4 Nf6 3. c4 c6 4. Qc2 g6 5. g3 Bg7 6. Bg2 Bf5 7. Qb3 Qb6 8. c5 Qxb3 9. axb3 O-O 10. Ne5 Nbd7 11. f4 Nxe5 12. fxe5 Nd7 13. O-O f6 14. Rxf5 gxf5 15. e6 Ne5 16. dxe5 fxe5 17. Bg5 Bf6 18. Bxf6 Rxf6 19. Bh3 f4 20. Nd2 e4 21. b4 a6 22. Nb3 Raf8 23. Nd4 Rh6 24. Bf5 Kg7 25. Rf1 fxg3 26. hxg3 Rhf6 27. g4 Kh6 28. Kg2 Kg5 29. Rh1 Rh6 30. Rxh6 Kxh6 31. Kg3 Kg5 32. Bxh7 Rh8 33. Bf5 Rh1 34. e3 Rg1+ 35. Kf2 Rc1 36. Ke2 Rb1 37. b3 Rb2+ 38. Kd1 Ra2 39. Kc1 Rh2 40. Nc2 Rg2 41. Kb2 Kh4 42. Bg6 Kg3 43. Kc3 Kf2 44. Be8 Rxg4 45. Bd7 Rg3 46. Kd4 Ke2 47. Bc8 Kd2 48. Bxb7 Kxc2 49. Bxa6 Rg6 50. b5 Rxe6 51. b6 Rh6 52. b7 Rh8 53. b4 Re8 54. Ke5 Kb3 55. b5 Kb4 56. bxc6 Kxc5 57. c7 1-0

[Event "European Amateur Chess-ch 2022"]
[Site "Zagreb"]
[Date "2022.08.20"]
[Round "8.12"]
[White "Maravic, Ivan"]
[Black "Jonsson, Gauti Pall"]
[Result "1/2-1/2"]
[ECO "E92"]
[WhiteElo "2009"]
[BlackElo "2071"]
[Annotator "NA RC"]
[PlyCount "114"]
[EventDate "2022.08.14"]
[EventCountry "CRO"]
[SourceTitle "playchess.com"]
[Source "ChessBase"]
[SourceQuality "1"]
[TimeControl "40/5400+30:1800+30"]

1. d4 Nf6 2. c4 g6 3. Nc3 Bg7 4. e4 d6 5. Nf3 O-O 6. Be2 Na6 7. O-O e5 8. dxe5 dxe5 9. Bg5 Qxd1 10. Raxd1 c6 11. h3 Nc5 12. Bd3 Ne6 13. Be3 Nh5 14. Bc2 b6 15. Rfe1 Bb7 16. g3 Rfd8 17. Nd2 Nd4 18. Bb1 Rd7 19. b4 Rad8 20. a4 Bf8 21. Bxd4 Rxd4 22. Nf3 Rxd1 23. Rxd1 Rxd1+ 24. Nxd1 f6 25. b5 Ng7 26. Nd2 Ne6 27. Nb3 cxb5 28. axb5 Ng5 29. Nc3 Nxh3+ 30. Kf1 Ng5 31. Nd5 Kf7 32. Ke2 Ne6 33. f3 h5 34. Bd3 Bd6 35. Kf2 Ng7 36. Kg2 Ke6 37. Kf2 f5 38. g4 hxg4 39. fxg4 Bc8 40. gxf5+ gxf5 41. exf5+ Nxf5 42. Ne3 Ne7 43. Be4 Bd7 44. Ke2 Kf7 45. Nd2 Ke8 46. Nd5 Be6 47. Nxe7 Kxe7 48. Kd3 Bb4 49. Nf1 Kd6 50. Ne3 Bh3 51. Bf5 Bxf5+ 52. Nxf5+ Kc5 53. Ng3 Be1 54. Ne4+ Kb4 55. Nd6 Kc5 56. Ne4+ Kb4 57. Nd6 Kc5 1/2-1/2

[Event "European Amateur Chess-ch 2022"]
[Site "Zagreb"]
[Date "2022.08.20"]
[Round "8.13"]
[White "Okrosa, Marijan"]
[Black "Prihoda, Leonardo"]
[Result "1-0"]
[ECO "D55"]
[WhiteElo "2059"]
[BlackElo "1995"]
[Annotator "NA RC"]
[PlyCount "99"]
[EventDate "2022.08.14"]
[EventCountry "CRO"]
[SourceTitle "playchess.com"]
[Source "ChessBase"]
[SourceQuality "1"]
[TimeControl "40/5400+30:1800+30"]

1. d4 d5 2. c4 e6 3. Nc3 Nf6 4. Bg5 Be7 5. cxd5 Nxd5 6. Bxe7 Qxe7 7. Nf3 O-O 8. e3 b6 9. Bd3 Nxc3 10. bxc3 Bb7 11. Qc2 f5 12. Bc4 Kh8 13. Qe2 Nd7 14. Bb5 Nf6 15. O-O Bxf3 16. Qxf3 Ne4 17. Rfc1 Qd6 18. a4 g5 19. Bd3 Nf6 20. Qg3 Qxg3 21. hxg3 a5 22. c4 Nd7 23. c5 bxc5 24. Bb5 Rf7 25. Bxd7 Rxd7 26. Rxc5 Ra7 27. Rac1 Kg7 28. Re5 Rd6 29. Rcc5 Rb6 30. g4 fxg4 31. Rxg5+ Kf6 32. Rxa5 Rxa5 33. Rxa5 Rb3 34. Kh2 Rb2 35. Kg3 Ra2 36. Rc5 Rxa4 37. Kxg4 Ra7 38. g3 Rb7 39. Kf4 Ra7 40. g4 h6 41. Rh5 Kg6 42. Rc5 Kf6 43. Rc6 Ke7 44. Ke5 Ra5+ 45. Rc5 Ra7 46. f4 Kd7 47. Kf6 Ra3 48. Re5 Ra8 49. Rxe6 Rg8 50. Kf5 1-0

[Event "European Amateur Chess-ch 2022"]
[Site "Zagreb"]
[Date "2022.08.20"]
[Round "8.14"]
[White "Colev, Ivor"]
[Black "Vucenovic, Damian"]
[Result "0-1"]
[ECO "C78"]
[WhiteElo "1950"]
[BlackElo "2053"]
[Annotator "NA RC"]
[PlyCount "52"]
[EventDate "2022.08.14"]
[EventCountry "CRO"]
[SourceTitle "playchess.com"]
[Source "ChessBase"]
[SourceQuality "1"]
[TimeControl "40/5400+30:1800+30"]

1. e4 e5 2. Nf3 Nc6 3. Bb5 a6 4. Ba4 Nf6 5. O-O b5 6. Bb3 Bc5 7. c3 d6 8. d4 Bb6 9. h3 O-O 10. Re1 Bb7 11. a4 Re8 12. Bg5 h6 13. axb5 axb5 14. Rxa8 Bxa8 15. Bxf6 Qxf6 16. d5 Ne7 17. Na3 Ng6 18. Nxb5 Nf4 19. g3 Nxh3+ 20. Kg2 Nxf2 21. Qe2 Bb7 22. Rf1 Ng4 23. Kh1 Ne3 24. Ra1 Qg6 25. Qh2 Qxe4 26. Bd1 Nxd1 0-1

[Event "European Amateur Chess-ch 2022"]
[Site "Zagreb"]
[Date "2022.08.20"]
[Round "8.15"]
[White "Dzaja, Martin Zorislav"]
[Black "Gal, Moshe"]
[Result "1-0"]
[ECO "D76"]
[WhiteElo "1974"]
[BlackElo "2111"]
[Annotator "NA RC"]
[PlyCount "91"]
[EventDate "2022.08.14"]
[EventCountry "CRO"]
[SourceTitle "playchess.com"]
[Source "ChessBase"]
[SourceQuality "1"]
[TimeControl "40/5400+30:1800+30"]

1. Nf3 g6 2. c4 Nf6 3. d4 Bg7 4. g3 O-O 5. Bg2 d5 6. cxd5 Nxd5 7. O-O Nc6 8. e4 Nb6 9. d5 Na5 10. Nc3 c6 11. Bf4 Nac4 12. Qc2 cxd5 13. Nxd5 Nxd5 14. exd5 Nxb2 15. Be5 Bxe5 16. Nxe5 f6 17. Nxg6 hxg6 18. Qxg6+ Kh8 19. Qh6+ Kg8 20. Qg6+ Kh8 21. Qc2 Qd6 22. Qxb2 Kg7 23. Rfe1 Bd7 24. Re3 b6 25. Rae1 Rae8 26. Qe2 Rf7 27. h4 Bc8 28. Bf3 Bf5 29. Qb5 Rc8 30. Bh5 Bg6 31. Bxg6 Kxg6 32. Qd3+ Kg7 33. Re6 Qc5 34. h5 Kf8 35. Qe4 Rd8 36. Rd1 Rc8 37. Rc6 Rxc6 38. dxc6 Rg7 39. Rd8+ Kf7 40. Qf3 Rg5 41. Qb3+ e6 42. Rd7+ Kf8 43. c7 Qc1+ 44. Qd1 Rc5 45. Qxc1 Rxc1+ 46. Kg2 1-0

[Event "European Amateur Chess-ch 2022"]
[Site "Zagreb"]
[Date "2022.08.20"]
[Round "8.17"]
[White "Kanizaj, Benjamin"]
[Black "Basaric, Srdjan"]
[Result "1/2-1/2"]
[ECO "C10"]
[WhiteElo "2050"]
[BlackElo "2024"]
[Annotator "NA RC"]
[PlyCount "88"]
[EventDate "2022.08.14"]
[EventCountry "CRO"]
[SourceTitle "playchess.com"]
[Source "ChessBase"]
[SourceQuality "1"]
[TimeControl "40/5400+30:1800+30"]

1. e4 e6 2. d4 d5 3. Nd2 dxe4 4. Nxe4 Bd7 5. Nf3 Bc6 6. Bd3 Nd7 7. O-O Ngf6 8. Re1 Nxe4 9. Bxe4 Bxe4 10. Rxe4 Nf6 11. Re1 Be7 12. c4 O-O 13. b3 c6 14. Qc2 Qc7 15. Bb2 a5 16. a4 Rfd8 17. Rad1 Rac8 18. Bc3 b5 19. Qd2 b4 20. Bb2 h6 21. Qe2 Re8 22. Ne5 Bd6 23. Rd3 Nd7 24. Rf3 Nxe5 25. dxe5 Bc5 26. Rd1 Red8 27. Rfd3 Be7 28. g3 Rxd3 29. Rxd3 Rd8 30. Qd1 Rxd3 31. Qxd3 Bc5 32. Kg2 Qb6 33. Qd2 Kf8 34. f4 Ke8 35. Kf3 Qd8 36. Qxd8+ Kxd8 37. g4 g6 38. f5 Bf8 39. f6 Kd7 40. Bc1 c5 41. h4 Ke8 42. Be3 Kd7 43. Ke4 Kc6 44. g5 h5 1/2-1/2